[Event "Late-Titled-Tuesday-Blitz-August-29-2023"]
[Site "Chess.com"]
[Date "2023.08.29"]
[Round "2"]
[White "cassoulet"]
[Black "krucki03"]
[Result "1-0"]
[WhiteElo "2731"]
[BlackElo "2408"]
[TimeControl "180+1"]
[EndTime "14:16:07 PDT"]
[Termination "cassoulet won by resignation"]

1. d4 {[%clk 0:03:00.9]} 1... Nf6 {[%clk 0:02:58.3]} 2. Bg5 {[%clk 0:03:00.2]}
2... g6 {[%clk 0:02:55.9]} 3. Bxf6 {[%clk 0:02:59.1]} 3... exf6 {[%clk
0:02:56.8]} 4. Nf3 {[%clk 0:02:58.7]} 4... Bg7 {[%clk 0:02:57.2]} 5. g3 {[%clk
0:02:59.2]} 5... O-O {[%clk 0:02:55.8]} 6. Bg2 {[%clk 0:02:59.8]} 6... f5 {[%clk
0:02:56.4]} 7. O-O {[%clk 0:02:59.6]} 7... Qf6 {[%clk 0:02:53.5]} 8. Nbd2 {[%clk
0:02:58.3]} 8... f4 {[%clk 0:02:52]} 9. c3 {[%clk 0:02:56.5]} 9... fxg3 {[%clk
0:02:51]} 10. fxg3 {[%clk 0:02:57.4]} 10... d6 {[%clk 0:02:46.5]} 11. e4 {[%clk
0:02:56.4]} 11... Bg4 {[%clk 0:02:45.7]} 12. Qb3 {[%clk 0:02:54.7]} 12... Bc8
{[%clk 0:02:02.6]} 13. e5 {[%clk 0:02:36.5]} 13... Qe7 {[%clk 0:01:55.7]} 14.
Rae1 {[%clk 0:02:31.6]} 14... Nc6 {[%clk 0:01:55.3]} 15. exd6 {[%clk 0:02:27.5]}
15... Qxd6 {[%clk 0:01:56.2]} 16. Ne4 {[%clk 0:02:26.7]} 16... Qd8 {[%clk
0:01:49.4]} 17. Nfg5 {[%clk 0:02:25.5]} 17... Qe7 {[%clk 0:01:34.3]} 18. Nf6+
{[%clk 0:02:18.6]} 18... Qxf6 {[%clk 0:01:33.2]} 19. Rxf6 {[%clk 0:02:17]} 19...
Bxf6 {[%clk 0:01:34.1]} 20. Nxf7 {[%clk 0:01:43.3]} 20... Rxf7 {[%clk
0:01:30.6]} 21. Bd5 {[%clk 0:01:43.2]} 21... Nd8 {[%clk 0:01:25.7]} 22. Re8+
{[%clk 0:01:30.6]} 22... Kg7 {[%clk 0:01:25.5]} 23. Rxd8 {[%clk 0:01:29.1]}
23... Bxd8 {[%clk 0:01:22.3]} 24. Bxf7 {[%clk 0:01:29.2]} 24... Bf5 {[%clk
0:01:22.5]} 25. Qxb7 {[%clk 0:01:23]} 25... Rc8 {[%clk 0:01:20]} 26. Bc4 {[%clk
0:01:20.2]} 26... Bg5 {[%clk 0:01:19.5]} 27. Qd5 {[%clk 0:01:15.4]} 27... Rf8
{[%clk 0:01:15.5]} 28. g4 {[%clk 0:01:13.8]} 28... Be3+ {[%clk 0:01:14]} 29. Kg2
{[%clk 0:01:12.2]} 29... Bxg4 {[%clk 0:00:52.4]} 30. Qe5+ {[%clk 0:01:12.1]}
30... Rf6 {[%clk 0:00:52.7]} 31. Qe7+ {[%clk 0:01:10.9]} 1-0

[Event "Late-Titled-Tuesday-Blitz-August-29-2023"]
[Site "Chess.com"]
[Date "2023.08.29"]
[Round "2"]
[White "jcmesafischer"]
[Black "MikeSailer"]
[Result "1-0"]
[WhiteElo "2451"]
[BlackElo "2162"]
[TimeControl "180+1"]
[EndTime "14:16:12 PDT"]
[Termination "jcmesafischer won by resignation"]

1. Nf3 {[%clk 0:03:00.9]} 1... e6 {[%clk 0:02:58.9]} 2. g3 {[%clk 0:02:48.5]}
2... f5 {[%clk 0:02:58.3]} 3. Bg2 {[%clk 0:02:48.6]} 3... Nf6 {[%clk 0:02:58.1]}
4. d4 {[%clk 0:02:49.2]} 4... Be7 {[%clk 0:02:57.7]} 5. c4 {[%clk 0:02:49.8]}
5... O-O {[%clk 0:02:58]} 6. Nc3 {[%clk 0:02:50.3]} 6... c6 {[%clk 0:02:56.6]}
7. d5 {[%clk 0:02:50.3]} 7... d6 {[%clk 0:02:49.1]} 8. dxe6 {[%clk 0:02:46.4]}
8... Bxe6 {[%clk 0:02:48.2]} 9. b3 {[%clk 0:02:44.9]} 9... a5 {[%clk 0:02:46.2]}
10. O-O {[%clk 0:02:40]} 10... Qc7 {[%clk 0:02:44.4]} 11. Nd4 {[%clk 0:02:38.9]}
11... Bc8 {[%clk 0:02:40.4]} 12. Qc2 {[%clk 0:02:38.9]} 12... g6 {[%clk
0:02:38]} 13. Bh6 {[%clk 0:02:38.1]} 13... Re8 {[%clk 0:02:36.4]} 14. Rfe1
{[%clk 0:02:33.5]} 14... Na6 {[%clk 0:02:36.4]} 15. h3 {[%clk 0:02:33.1]} 15...
Nb4 {[%clk 0:02:35.7]} 16. Qd2 {[%clk 0:02:32.4]} 16... Bd7 {[%clk 0:02:21]} 17.
Kh2 {[%clk 0:02:12.1]} 17... Bf8 {[%clk 0:02:18.2]} 18. Bxf8 {[%clk 0:02:09.1]}
18... Rxf8 {[%clk 0:02:18.5]} 19. Rad1 {[%clk 0:02:10]} 19... Rad8 {[%clk
0:02:11.5]} 20. a3 {[%clk 0:02:00.3]} 20... Na6 {[%clk 0:02:10.8]} 21. Na4
{[%clk 0:01:46.9]} 21... Bc8 {[%clk 0:02:04.3]} 22. b4 {[%clk 0:01:43.8]} 22...
axb4 {[%clk 0:02:03.4]} 23. axb4 {[%clk 0:01:44.7]} 23... Ne4 {[%clk 0:01:55.3]}
24. Qb2 {[%clk 0:01:40.7]} 24... Rfe8 {[%clk 0:01:49.5]} 25. e3 {[%clk
0:01:37.1]} 25... h5 {[%clk 0:01:31.6]} 26. h4 {[%clk 0:01:23.7]} 26... Re7
{[%clk 0:01:16.7]} 27. Ne2 {[%clk 0:01:07.6]} 27... Kh7 {[%clk 0:01:12.7]} 28.
f3 {[%clk 0:01:07.1]} 28... Nf6 {[%clk 0:01:08.1]} 29. Qxf6 {[%clk 0:01:06]} 1-0

[Event "Late-Titled-Tuesday-Blitz-August-29-2023"]
[Site "Chess.com"]
[Date "2023.08.29"]
[Round "2"]
[White "Macron20hTF1"]
[Black "h4parah5"]
[Result "0-1"]
[WhiteElo "2622"]
[BlackElo "2974"]
[TimeControl "180+1"]
[EndTime "14:16:15 PDT"]
[Termination "h4parah5 won by resignation"]

1. Nf3 {[%clk 0:03:00.9]} 1... c5 {[%clk 0:02:59.7]} 2. e4 {[%clk 0:03:01]} 2...
Nc6 {[%clk 0:03:00.1]} 3. Bc4 {[%clk 0:02:59.6]} 3... e6 {[%clk 0:02:59.4]} 4.
O-O {[%clk 0:03:00.2]} 4... Nf6 {[%clk 0:02:58.2]} 5. Re1 {[%clk 0:03:00.1]}
5... Nxe4 {[%clk 0:02:38.5]} 6. Rxe4 {[%clk 0:03:01]} 6... d5 {[%clk 0:02:38.6]}
7. Bxd5 {[%clk 0:03:01.5]} 7... Qxd5 {[%clk 0:02:39.2]} 8. Nc3 {[%clk
0:03:02.4]} 8... Qd8 {[%clk 0:02:37]} 9. d4 {[%clk 0:03:02.9]} 9... Be7 {[%clk
0:02:31.7]} 10. d5 {[%clk 0:03:01.1]} 10... exd5 {[%clk 0:02:31.8]} 11. Qxd5
{[%clk 0:02:54.8]} 11... Be6 {[%clk 0:02:27.9]} 12. Rxe6 {[%clk 0:02:30.1]}
12... fxe6 {[%clk 0:02:25.3]} 13. Qxe6 {[%clk 0:02:30.2]} 13... Qd7 {[%clk
0:02:24.7]} 14. Qxd7+ {[%clk 0:02:28.7]} 14... Kxd7 {[%clk 0:02:24.3]} 15. Be3
{[%clk 0:02:28]} 15... Rad8 {[%clk 0:02:22.1]} 16. Ne4 {[%clk 0:02:27.9]} 16...
b6 {[%clk 0:02:21.8]} 17. g3 {[%clk 0:02:27.2]} 17... h6 {[%clk 0:02:21.1]} 18.
c3 {[%clk 0:02:26.9]} 18... Rhe8 {[%clk 0:02:20.2]} 19. a4 {[%clk 0:02:20.5]}
19... Kc7 {[%clk 0:02:12.5]} 20. Kg2 {[%clk 0:02:15.7]} 20... Kb7 {[%clk
0:02:11.1]} 21. Ned2 {[%clk 0:02:08.8]} 21... Na5 {[%clk 0:02:04]} 22. h4 {[%clk
0:02:07.6]} 22... Bf6 {[%clk 0:02:01.1]} 23. Rc1 {[%clk 0:02:02.7]} 23... Rd5
{[%clk 0:01:47]} 24. b4 {[%clk 0:02:01]} 24... cxb4 {[%clk 0:01:39.4]} 25. cxb4
{[%clk 0:02:01.9]} 25... Nc6 {[%clk 0:01:39.4]} 26. b5 {[%clk 0:01:52.7]} 26...
Nb4 {[%clk 0:01:38.2]} 27. Rc4 {[%clk 0:01:47.2]} 27... Nd3 {[%clk 0:01:35]} 28.
Ne4 {[%clk 0:01:46.7]} 28... Be7 {[%clk 0:01:22.4]} 29. Nd4 {[%clk 0:01:41.2]}
29... Nb2 {[%clk 0:01:09.1]} 30. Rc2 {[%clk 0:01:37.7]} 30... Nxa4 {[%clk
0:01:06.6]} 31. Nc6 {[%clk 0:01:31.9]} 31... Bf8 {[%clk 0:00:58.1]} 32. f3
{[%clk 0:01:22.4]} 32... Rxb5 {[%clk 0:00:57.3]} 33. Bf4 {[%clk 0:01:17.7]}
33... Rb2 {[%clk 0:00:55.2]} 34. Rxb2 {[%clk 0:01:10.4]} 34... Nxb2 {[%clk
0:00:56.1]} 35. Nb4 {[%clk 0:01:09.4]} 35... Bxb4 {[%clk 0:00:55.1]} 0-1

[Event "Late-Titled-Tuesday-Blitz-August-29-2023"]
[Site "Chess.com"]
[Date "2023.08.29"]
[Round "2"]
[White "ariosp"]
[Black "Eloist"]
[Result "0-1"]
[WhiteElo "2228"]
[BlackElo "2467"]
[TimeControl "180+1"]
[EndTime "14:16:17 PDT"]
[Termination "Eloist won by checkmate"]

1. e4 {[%clk 0:03:00.9]} 1... e6 {[%clk 0:02:59.9]} 2. d4 {[%clk 0:02:59.7]}
2... d5 {[%clk 0:03:00.1]} 3. Nd2 {[%clk 0:02:59]} 3... c5 {[%clk 0:02:59.4]} 4.
Ngf3 {[%clk 0:02:57.4]} 4... cxd4 {[%clk 0:02:58.7]} 5. exd5 {[%clk 0:02:57.1]}
5... Qxd5 {[%clk 0:02:57.7]} 6. Bc4 {[%clk 0:02:55.9]} 6... Qd6 {[%clk
0:02:57.8]} 7. O-O {[%clk 0:02:55.2]} 7... Nf6 {[%clk 0:02:57.3]} 8. Nb3 {[%clk
0:02:51.9]} 8... Nc6 {[%clk 0:02:57.3]} 9. Qe2 {[%clk 0:02:51.4]} 9... a6 {[%clk
0:02:05.9]} 10. Rd1 {[%clk 0:02:50.1]} 10... b5 {[%clk 0:02:04.9]} 11. Bd3
{[%clk 0:02:48.3]} 11... Bb7 {[%clk 0:02:00.6]} 12. Nbxd4 {[%clk 0:02:39.4]}
12... Nxd4 {[%clk 0:01:58]} 13. Nxd4 {[%clk 0:02:38.8]} 13... Qd5 {[%clk
0:01:53.7]} 14. Qf1 {[%clk 0:02:29.4]} 14... Bd6 {[%clk 0:01:42.9]} 15. Nxb5
{[%clk 0:02:23.4]} 15... Bxh2+ {[%clk 0:01:36]} 16. Kxh2 {[%clk 0:02:23]} 16...
Qh5+ {[%clk 0:01:35.2]} 17. Kg1 {[%clk 0:02:20]} 17... axb5 {[%clk 0:01:14.2]}
18. Bxb5+ {[%clk 0:02:17.3]} 18... Ke7 {[%clk 0:01:02.6]} 19. Bd2 {[%clk
0:02:14.4]} 19... Ng4 {[%clk 0:00:55.9]} 20. Bb4+ {[%clk 0:02:05.8]} 20... Kf6
{[%clk 0:00:54.3]} 21. Bd6 {[%clk 0:01:38]} 21... e5 {[%clk 0:00:46.1]} 22.
Bxe5+ {[%clk 0:01:22]} 22... Qxe5 {[%clk 0:00:39.9]} 23. f3 {[%clk 0:01:10.1]}
23... Qe3+ {[%clk 0:00:37]} 24. Kh1 {[%clk 0:01:09.9]} 24... Qh6+ {[%clk
0:00:36.2]} 25. Kg1 {[%clk 0:01:08.2]} 25... Qh2# {[%clk 0:00:36.1]} 0-1

[Event "Late-Titled-Tuesday-Blitz-August-29-2023"]
[Site "Chess.com"]
[Date "2023.08.29"]
[Round "2"]
[White "kleinebeer98"]
[Black "Fuzesabonyilaci"]
[Result "1-0"]
[WhiteElo "2752"]
[BlackElo "2414"]
[TimeControl "180+1"]
[EndTime "14:16:24 PDT"]
[Termination "kleinebeer98 won on time"]

1. e4 {[%clk 0:03:00.9]} 1... e6 {[%clk 0:02:58.6]} 2. c4 {[%clk 0:03:00.8]}
2... c5 {[%clk 0:02:57.3]} 3. Nf3 {[%clk 0:03:00.1]} 3... Nc6 {[%clk 0:02:57.1]}
4. Nc3 {[%clk 0:03:00.8]} 4... Nf6 {[%clk 0:02:45.3]} 5. d4 {[%clk 0:03:01]}
5... cxd4 {[%clk 0:02:45.2]} 6. Nxd4 {[%clk 0:03:01.9]} 6... Bb4 {[%clk
0:02:44.1]} 7. Nxc6 {[%clk 0:03:02.3]} 7... bxc6 {[%clk 0:02:43.2]} 8. Bd3
{[%clk 0:03:03.1]} 8... e5 {[%clk 0:02:29.9]} 9. O-O {[%clk 0:03:03.1]} 9... O-O
{[%clk 0:02:29.5]} 10. Bg5 {[%clk 0:03:03.8]} 10... h6 {[%clk 0:02:28.9]} 11.
Bh4 {[%clk 0:03:04.3]} 11... g5 {[%clk 0:02:17.1]} 12. Bg3 {[%clk 0:03:04.6]}
12... Bxc3 {[%clk 0:02:17.2]} 13. bxc3 {[%clk 0:03:04.7]} 13... d6 {[%clk
0:02:17.7]} 14. Rb1 {[%clk 0:03:05.2]} 14... Qa5 {[%clk 0:02:08.4]} 15. h4
{[%clk 0:03:04.8]} 15... Kg7 {[%clk 0:02:07.5]} 16. Qd2 {[%clk 0:03:04.4]} 16...
Nh7 {[%clk 0:01:58]} 17. f3 {[%clk 0:02:59.9]} 17... Be6 {[%clk 0:01:55.1]} 18.
Bf2 {[%clk 0:03:00.6]} 18... Rab8 {[%clk 0:01:52.1]} 19. Rbd1 {[%clk 0:03:01.3]}
19... Rfd8 {[%clk 0:01:38.2]} 20. Be3 {[%clk 0:03:01.9]} 20... f6 {[%clk
0:01:38.4]} 21. g3 {[%clk 0:02:57.7]} 21... Qa4 {[%clk 0:01:33.1]} 22. f4 {[%clk
0:02:57.9]} 22... Bxc4 {[%clk 0:01:17.2]} 23. fxg5 {[%clk 0:02:57.1]} 23... fxg5
{[%clk 0:01:07]} 24. hxg5 {[%clk 0:02:58]} 24... hxg5 {[%clk 0:01:00.7]} 25.
Bxg5 {[%clk 0:02:57.7]} 25... Bxd3 {[%clk 0:00:59.1]} 26. Bxd8 {[%clk
0:02:46.8]} 26... Bxf1 {[%clk 0:00:31.2]} 27. Qxd6 {[%clk 0:02:46.8]} 27... Bc4
{[%clk 0:00:22.5]} 28. Qxe5+ {[%clk 0:02:45.7]} 28... Kg8 {[%clk 0:00:15.4]} 29.
Rd2 {[%clk 0:02:28.8]} 29... Qb5 {[%clk 0:00:10.8]} 30. Qf4 {[%clk 0:02:10.4]}
30... Qc5+ {[%clk 0:00:08.3]} 31. Kh2 {[%clk 0:02:10.2]} 31... Rb7 {[%clk
0:00:07.5]} 32. Bc7 {[%clk 0:02:09.1]} 32... Qf8 {[%clk 0:00:06.3]} 33. Rd8
{[%clk 0:02:09]} 33... Qxd8 {[%clk 0:00:06.1]} 34. Bxd8 {[%clk 0:02:09.9]} 34...
Rf7 {[%clk 0:00:03.6]} 35. Qg4+ {[%clk 0:02:08.8]} 35... Rg7 {[%clk 0:00:04.2]}
36. Qc8 {[%clk 0:02:08.8]} 36... Nf8 {[%clk 0:00:02.7]} 37. Qxc6 {[%clk
0:02:09.2]} 37... Be6 {[%clk 0:00:02.4]} 38. Bf6 {[%clk 0:02:08.5]} 38... Rh7+
{[%clk 0:00:02.4]} 39. Kg1 {[%clk 0:02:08.9]} 39... Rh6 {[%clk 0:00:03]} 40. Bd4
{[%clk 0:02:08.3]} 40... Rg6 {[%clk 0:00:02.7]} 41. Qd6 {[%clk 0:02:08.2]} 41...
Bf7 {[%clk 0:00:01.8]} 42. Qe5 {[%clk 0:02:08.4]} 1-0

[Event "Late-Titled-Tuesday-Blitz-August-29-2023"]
[Site "Chess.com"]
[Date "2023.08.29"]
[Round "2"]
[White "karinachess1"]
[Black "Schwindle"]
[Result "1-0"]
[WhiteElo "2586"]
[BlackElo "2392"]
[TimeControl "180+1"]
[EndTime "14:16:29 PDT"]
[Termination "karinachess1 won by checkmate"]

1. e4 {[%clk 0:03:00.9]} 1... e6 {[%clk 0:02:59.9]} 2. d4 {[%clk 0:03:00.1]}
2... d5 {[%clk 0:03:00.3]} 3. Nc3 {[%clk 0:03:00.5]} 3... Nf6 {[%clk 0:03:00.7]}
4. e5 {[%clk 0:03:00.7]} 4... Nfd7 {[%clk 0:03:01]} 5. f4 {[%clk 0:03:01.3]}
5... c5 {[%clk 0:03:01.5]} 6. Nf3 {[%clk 0:03:01.9]} 6... Nc6 {[%clk 0:03:02.2]}
7. Be3 {[%clk 0:03:02.3]} 7... Be7 {[%clk 0:03:02.6]} 8. Qd2 {[%clk 0:03:01.4]}
8... a6 {[%clk 0:03:02.8]} 9. dxc5 {[%clk 0:03:00.9]} 9... Nxc5 {[%clk
0:03:02.4]} 10. O-O-O {[%clk 0:03:00.7]} 10... b5 {[%clk 0:03:02.2]} 11. Kb1
{[%clk 0:02:39.2]} 11... b4 {[%clk 0:03:00]} 12. Ne2 {[%clk 0:02:39.3]} 12...
Ne4 {[%clk 0:02:58.9]} 13. Qe1 {[%clk 0:02:37]} 13... Rb8 {[%clk 0:02:53.7]} 14.
Nfd4 {[%clk 0:01:56.2]} 14... Nxd4 {[%clk 0:02:47.4]} 15. Bxd4 {[%clk
0:01:57.1]} 15... Qa5 {[%clk 0:02:37.4]} 16. Ka1 {[%clk 0:01:38.6]} 16... Bd7
{[%clk 0:02:30.9]} 17. Ng3 {[%clk 0:01:36.4]} 17... Bc6 {[%clk 0:01:56.2]} 18.
Bd3 {[%clk 0:01:31.3]} 18... O-O {[%clk 0:01:47.4]} 19. Nxe4 {[%clk 0:01:27.7]}
19... dxe4 {[%clk 0:01:47.7]} 20. Bxe4 {[%clk 0:01:28.2]} 20... Bxe4 {[%clk
0:01:46.9]} 21. Qxe4 {[%clk 0:01:29.1]} 21... b3 {[%clk 0:01:45.3]} 22. cxb3
{[%clk 0:01:24.3]} 22... Rxb3 {[%clk 0:01:44.2]} 23. f5 {[%clk 0:01:07.9]} 23...
exf5 {[%clk 0:01:35.9]} 24. Qxf5 {[%clk 0:01:08]} 24... Rb5 {[%clk 0:01:14]} 25.
Qd7 {[%clk 0:00:52.9]} 25... Bg5 {[%clk 0:00:48.1]} 26. e6 {[%clk 0:00:50.1]}
26... fxe6 {[%clk 0:00:42.8]} 27. Qxg7# {[%clk 0:00:49.7]} 1-0

[Event "Late-Titled-Tuesday-Blitz-August-29-2023"]
[Site "Chess.com"]
[Date "2023.08.29"]
[Round "2"]
[White "Korchmar_Vasiliy"]
[Black "JiiHart"]
[Result "1-0"]
[WhiteElo "2685"]
[BlackElo "2118"]
[TimeControl "180+1"]
[EndTime "14:16:31 PDT"]
[Termination "Korchmar_Vasiliy won by checkmate"]

1. e4 {[%clk 0:03:00]} 1... c5 {[%clk 0:02:59.8]} 2. d4 {[%clk 0:03:00.2]} 2...
cxd4 {[%clk 0:02:59.6]} 3. Qxd4 {[%clk 0:03:01.1]} 3... Nc6 {[%clk 0:02:59.4]}
4. Qd3 {[%clk 0:03:01.7]} 4... Nf6 {[%clk 0:02:59.4]} 5. Nc3 {[%clk 0:03:02.2]}
5... e5 {[%clk 0:02:58.9]} 6. Bg5 {[%clk 0:03:01.4]} 6... Bb4 {[%clk 0:02:57.5]}
7. O-O-O {[%clk 0:03:00.7]} 7... Bxc3 {[%clk 0:02:47.5]} 8. bxc3 {[%clk
0:02:52]} 8... O-O {[%clk 0:02:33.7]} 9. Ne2 {[%clk 0:02:30.7]} 9... d6 {[%clk
0:02:31.3]} 10. Ng3 {[%clk 0:02:27.1]} 10... Be6 {[%clk 0:02:00.9]} 11. Nh5
{[%clk 0:02:22.2]} 11... Nxh5 {[%clk 0:01:30.3]} 12. Bxd8 {[%clk 0:02:21.3]}
12... Rfxd8 {[%clk 0:01:30.6]} 13. g3 {[%clk 0:02:13.7]} 13... Rac8 {[%clk
0:01:26.6]} 14. h4 {[%clk 0:02:13.1]} 14... d5 {[%clk 0:01:19.9]} 15. Bh3 {[%clk
0:02:11.7]} 15... Bxh3 {[%clk 0:01:13.3]} 16. Rxh3 {[%clk 0:02:11.3]} 16... dxe4
{[%clk 0:01:11.3]} 17. Qxe4 {[%clk 0:02:12.2]} 17... Rxd1+ {[%clk 0:01:10.8]}
18. Kxd1 {[%clk 0:02:13.1]} 18... Nf6 {[%clk 0:01:08.4]} 19. Qf5 {[%clk
0:02:10.9]} 19... Rd8+ {[%clk 0:01:05.9]} 20. Kc1 {[%clk 0:02:11.1]} 20... Nd5
{[%clk 0:01:02.8]} 21. Kb2 {[%clk 0:02:06.9]} 21... Nb6 {[%clk 0:01:00.3]} 22.
Qe4 {[%clk 0:01:48.5]} 22... f6 {[%clk 0:00:55.3]} 23. g4 {[%clk 0:01:47.4]}
23... Na5 {[%clk 0:00:55.3]} 24. Rd3 {[%clk 0:01:42.9]} 24... Nbc4+ {[%clk
0:00:55.4]} 25. Kc1 {[%clk 0:01:41.9]} 25... Rc8 {[%clk 0:00:21.6]} 26. Qd5+
{[%clk 0:01:42.1]} 26... Kf8 {[%clk 0:00:19.1]} 27. g5 {[%clk 0:01:42.6]} 27...
b5 {[%clk 0:00:17.3]} 28. gxf6 {[%clk 0:01:41.7]} 28... gxf6 {[%clk 0:00:17.6]}
29. Rg3 {[%clk 0:01:42.4]} 29... Rc6 {[%clk 0:00:07.6]} 30. Rg8+ {[%clk
0:01:41.5]} 30... Ke7 {[%clk 0:00:07.7]} 31. Rg7+ {[%clk 0:01:41.1]} 31... Ke8
{[%clk 0:00:06]} 32. Qg8# {[%clk 0:01:41.2]} 1-0

[Event "Late-Titled-Tuesday-Blitz-August-29-2023"]
[Site "Chess.com"]
[Date "2023.08.29"]
[Round "2"]
[White "FaustinoOro"]
[Black "angryspacevoid"]
[Result "1-0"]
[WhiteElo "2908"]
[BlackElo "2578"]
[TimeControl "180+1"]
[EndTime "14:16:38 PDT"]
[Termination "FaustinoOro won by resignation"]

1. e4 {[%clk 0:03:00.9]} 1... c5 {[%clk 0:02:54.7]} 2. Nf3 {[%clk 0:03:00.1]}
2... a6 {[%clk 0:02:54.3]} 3. c3 {[%clk 0:02:56.8]} 3... g6 {[%clk 0:02:53.7]}
4. d4 {[%clk 0:02:56.4]} 4... cxd4 {[%clk 0:02:54.1]} 5. cxd4 {[%clk 0:02:57.3]}
5... d5 {[%clk 0:02:54.4]} 6. e5 {[%clk 0:02:57.2]} 6... Bg4 {[%clk 0:02:54.1]}
7. Nc3 {[%clk 0:02:56.1]} 7... Nc6 {[%clk 0:02:46.2]} 8. Be3 {[%clk 0:02:54.9]}
8... e6 {[%clk 0:02:42.1]} 9. Be2 {[%clk 0:02:54]} 9... Bxf3 {[%clk 0:02:38.7]}
10. Bxf3 {[%clk 0:02:54]} 10... Nge7 {[%clk 0:02:34.7]} 11. O-O {[%clk 0:02:45]}
11... Nf5 {[%clk 0:02:34.3]} 12. Bg4 {[%clk 0:02:33.1]} 12... Nxe3 {[%clk
0:02:09.6]} 13. fxe3 {[%clk 0:02:34]} 13... Bh6 {[%clk 0:02:07.1]} 14. Qf3
{[%clk 0:02:21.8]} 14... O-O {[%clk 0:02:03.3]} 15. Rae1 {[%clk 0:02:20.4]}
15... b5 {[%clk 0:01:57.9]} 16. Qf2 {[%clk 0:02:11.6]} 16... Bg5 {[%clk
0:01:49]} 17. Be2 {[%clk 0:01:47.2]} 17... f6 {[%clk 0:01:32.8]} 18. h4 {[%clk
0:01:42.1]} 18... Bxe3 {[%clk 0:01:04]} 19. Qxe3 {[%clk 0:01:35.8]} 19... fxe5
{[%clk 0:01:03.2]} 20. Rxf8+ {[%clk 0:01:20.8]} 20... Qxf8 {[%clk 0:01:04.1]}
21. dxe5 {[%clk 0:00:59.4]} 21... d4 {[%clk 0:01:04]} 22. Qf3 {[%clk 0:00:58.8]}
22... Qxf3 {[%clk 0:00:28.5]} 23. Bxf3 {[%clk 0:00:58.7]} 23... dxc3 {[%clk
0:00:29.2]} 24. Bxc6 {[%clk 0:00:59]} 24... Rc8 {[%clk 0:00:24.7]} 25. Bd7
{[%clk 0:00:58.3]} 1-0

[Event "Late-Titled-Tuesday-Blitz-August-29-2023"]
[Site "Chess.com"]
[Date "2023.08.29"]
[Round "2"]
[White "Dare-Dare"]
[Black "Incognito_Knight"]
[Result "0-1"]
[WhiteElo "2519"]
[BlackElo "2776"]
[TimeControl "180+1"]
[EndTime "14:16:41 PDT"]
[Termination "Incognito_Knight won by resignation"]

1. Nf3 {[%clk 0:03:00.9]} 1... b6 {[%clk 0:03:00]} 2. c4 {[%clk 0:03:01.8]} 2...
Bb7 {[%clk 0:02:59.9]} 3. Nc3 {[%clk 0:03:02.4]} 3... Nf6 {[%clk 0:02:59]} 4. e3
{[%clk 0:03:02.5]} 4... g6 {[%clk 0:02:56.9]} 5. d4 {[%clk 0:02:56.2]} 5... Bg7
{[%clk 0:02:57.2]} 6. Bd3 {[%clk 0:02:56.5]} 6... O-O {[%clk 0:02:57.5]} 7. O-O
{[%clk 0:02:56.9]} 7... d5 {[%clk 0:02:54.2]} 8. cxd5 {[%clk 0:02:54.7]} 8...
Nxd5 {[%clk 0:02:55.1]} 9. Nxd5 {[%clk 0:02:53.1]} 9... Qxd5 {[%clk 0:02:46.7]}
10. e4 {[%clk 0:02:53]} 10... Qd6 {[%clk 0:02:38.6]} 11. Be3 {[%clk 0:02:52.4]}
11... Nc6 {[%clk 0:02:30.7]} 12. d5 {[%clk 0:02:47.7]} 12... Nb4 {[%clk
0:02:23.8]} 13. Bd4 {[%clk 0:02:22.2]} 13... e5 {[%clk 0:02:02.7]} 14. Bc3
{[%clk 0:02:10.9]} 14... Nxd3 {[%clk 0:02:01.6]} 15. Qxd3 {[%clk 0:02:11.8]}
15... f5 {[%clk 0:01:58.7]} 16. Rad1 {[%clk 0:01:51.9]} 16... fxe4 {[%clk
0:01:53.3]} 17. Qxe4 {[%clk 0:01:51.9]} 17... Rf4 {[%clk 0:01:53]} 18. Qe3
{[%clk 0:01:39.1]} 18... Rf5 {[%clk 0:01:33.3]} 19. Qe4 {[%clk 0:00:31.6]} 19...
Rd8 {[%clk 0:01:31.8]} 20. Bb4 {[%clk 0:00:20.5]} 20... Qd7 {[%clk 0:01:17.3]}
21. Rfe1 {[%clk 0:00:18.6]} 21... Rf4 {[%clk 0:01:11.6]} 22. Nxe5 {[%clk
0:00:13.2]} 22... Rxe4 {[%clk 0:01:09.8]} 23. Nxd7 {[%clk 0:00:13.5]} 23...
Rxe1+ {[%clk 0:01:06]} 24. Rxe1 {[%clk 0:00:14]} 24... Rxd7 {[%clk 0:01:05.8]}
0-1

[Event "Late-Titled-Tuesday-Blitz-August-29-2023"]
[Site "Chess.com"]
[Date "2023.08.29"]
[Round "2"]
[White "lamomiajunior"]
[Black "newyorkmouse"]
[Result "1-0"]
[WhiteElo "2748"]
[BlackElo "2486"]
[TimeControl "180+1"]
[EndTime "14:16:42 PDT"]
[Termination "lamomiajunior won on time"]

1. d4 {[%clk 0:03:00.9]} 1... Nf6 {[%clk 0:02:56.8]} 2. Nc3 {[%clk 0:03:01.3]}
2... d5 {[%clk 0:02:53.7]} 3. Bf4 {[%clk 0:03:02]} 3... c5 {[%clk 0:02:42.5]} 4.
e4 {[%clk 0:03:01.3]} 4... cxd4 {[%clk 0:02:42.2]} 5. Qxd4 {[%clk 0:03:01.2]}
5... Nc6 {[%clk 0:02:42.8]} 6. Bb5 {[%clk 0:03:01.7]} 6... Bd7 {[%clk
0:02:43.4]} 7. Bxc6 {[%clk 0:03:02.1]} 7... Bxc6 {[%clk 0:02:44.3]} 8. e5 {[%clk
0:03:02.7]} 8... Nd7 {[%clk 0:02:45.1]} 9. e6 {[%clk 0:03:03]} 9... fxe6 {[%clk
0:02:46]} 10. Nf3 {[%clk 0:03:03.6]} 10... Qb6 {[%clk 0:02:46.2]} 11. Be5 {[%clk
0:03:04.1]} 11... Qxd4 {[%clk 0:02:37.6]} 12. Bxd4 {[%clk 0:03:05]} 12... Rg8
{[%clk 0:02:14.9]} 13. h4 {[%clk 0:03:04.5]} 13... g6 {[%clk 0:02:10.5]} 14.
O-O-O {[%clk 0:03:02.8]} 14... Bg7 {[%clk 0:02:10.2]} 15. Bxg7 {[%clk
0:03:02.8]} 15... Rxg7 {[%clk 0:02:11.1]} 16. Rhe1 {[%clk 0:03:02.9]} 16... Nf8
{[%clk 0:01:56.6]} 17. Ne2 {[%clk 0:02:55.7]} 17... Rc8 {[%clk 0:01:46.6]} 18.
Ned4 {[%clk 0:02:54.7]} 18... Bd7 {[%clk 0:01:41.8]} 19. c3 {[%clk 0:02:53.3]}
19... h6 {[%clk 0:01:38.8]} 20. g4 {[%clk 0:02:48.7]} 20... Rf7 {[%clk
0:01:02.7]} 21. Rd2 {[%clk 0:02:36.9]} 21... Rf4 {[%clk 0:00:55.6]} 22. Ne5
{[%clk 0:02:37.2]} 22... h5 {[%clk 0:00:48.3]} 23. f3 {[%clk 0:02:33.1]} 23...
Bc6 {[%clk 0:00:23.5]} 24. Kb1 {[%clk 0:02:25.2]} 24... hxg4 {[%clk 0:00:21.7]}
25. fxg4 {[%clk 0:02:24]} 25... Nd7 {[%clk 0:00:21.5]} 26. Nxg6 {[%clk
0:01:43.5]} 26... Rxg4 {[%clk 0:00:13.4]} 27. h5 {[%clk 0:01:44]} 27... e5
{[%clk 0:00:11.9]} 28. Nxe5 {[%clk 0:01:41.5]} 28... Rh4 {[%clk 0:00:07.1]} 29.
Nf5 {[%clk 0:01:36.6]} 29... Rh3 {[%clk 0:00:04.1]} 30. Ng6 {[%clk 0:01:33]}
30... e5 {[%clk 0:00:01.5]} 31. Nxe5 {[%clk 0:01:32.9]} 31... Nxe5 {[%clk
0:00:01.9]} 32. Rxe5+ {[%clk 0:01:33.5]} 32... Kd7 {[%clk 0:00:02.2]} 33. Re7+
{[%clk 0:01:33.2]} 33... Kd8 {[%clk 0:00:02.6]} 34. Rde2 {[%clk 0:01:33.7]} 1-0